fUSD/lending_fUSD_20241207
["ID","MTS","AMOUNT","RATE_DAILY","PERIOD"]
[344543968,1733539843671,-500.0,0.00010951,2]
[344543969,1733539843681,-500.0,0.00010951,2]
[344543970,1733539843690,-500.0,0.00010951,2]
[344543971,1733539843699,-500.0,0.00010951,2]
[344543972,1733539843709,-500.0,0.00010951,2]
[344543973,1733539843719,-500.0,0.00010951,2]
[344543974,1733539843729,-501.46,0.00010951,2]
[344543975,1733539843738,-2024.38,0.00010951,2]
[344543976,1733539843747,-500.0,0.00010951,2]
[344543977,1733539843757,-500.0,0.00010951,2]
[344543978,1733539843767,-500.0,0.00010951,2]
[344543979,1733539843775,-4045.15,0.00010951,2]
[344543980,1733539843784,-500.0,0.00010951,2]
[344543981,1733539843793,-947.71,0.00010951,2]
[344543982,1733539843802,-6.34968247,0.00010951,2]
[344543983,1733539843815,-493.65031753,0.00010951,2]
[344543984,1733539843826,-500.0,0.00010951,2]
[344543985,1733539843836,-500.0,0.00010951,2]
[344543986,1733539843845,-500.0,0.00010951,2]
[344543987,1733539843856,-1894.48,0.00010951,2]
[344543988,1733539843865,-3888.04,0.00010951,2]
[344543989,1733539843875,-529.02100542,0.00010951,2]
[344543990,1733539843885,-500.0,0.00010951,2]
[344543991,1733539843894,-500.0,0.00010951,2]
[344543992,1733539843903,-528.17,0.00010951,2]
[344543993,1733539843912,-242.06178084,0.00010951,2]
[344543994,1733539843924,-268.57821916,0.00010951,2]
[344543995,1733539843933,-500.0,0.00010951,2]
[344543996,1733539843943,-696.77,0.00010951,2]
[344543997,1733539843953,-626.29,0.00010951,2]
[344543998,1733539843962,-500.0,0.00010951,2]
[344543999,1733539843972,-544.66,0.00010951,2]
[344544000,1733539843981,-500.0,0.00010951,2]
[344544001,1733539843991,-500.0,0.00010951,2]
[344544002,1733539844000,-716.29,0.00010951,2]
[344544003,1733539844009,-500.0,0.00010951,2]
[344544004,1733539844021,-1249.31,0.00010951,2]
[344544005,1733539844032,-500.0,0.00010951,2]
[344544006,1733539844041,-500.0,0.00010951,2]
[344544007,1733539844051,-944.76,0.00010951,2]
[344544008,1733539844061,-500.0,0.00010951,2]
[344544009,1733539844071,-500.0,0.00010951,2]
[344544010,1733539844081,-1066.51,0.00010951,2]
[344544011,1733539844090,-2529.32,0.00010951,2]
[344544012,1733539844100,-500.0,0.00010951,2]
[344544013,1733539844110,-500.0,0.00010951,2]
[344544014,1733539844120,-500.0,0.00010951,2]
[344544015,1733539844129,-500.0,0.00010951,2]
[344544016,1733539844139,-1323.97,0.00010951,2]
[344544017,1733539844148,-500.46460162,0.00010951,2]
[344544018,1733539844157,-4580.88,0.00010951,2]
[344544019,1733539844169,-500.0,0.00010951,2]
[344544020,1733539844178,-651.06,0.00010951,2]
[344544021,1733539844187,-500.0,0.00010951,2]
[344544022,1733539844199,-500.0,0.00010951,2]
[344544023,1733539844208,-1138.02,0.00010951,2]
[344544024,1733539844217,-500.0,0.00010951,2]
[344544025,1733539844227,-3544.04,0.00010951,2]
[344544026,1733539844236,-612.84,0.00010951,2]
[344544027,1733539844246,-500.0,0.00010952,2]
[344544028,1733539844255,-500.0,0.00010952,2]
[344544029,1733539844266,-500.0,0.00010952,2]
[344544030,1733539844275,-500.0,0.00010952,2]
[344544031,1733539844285,-500.0,0.00010952,2]
[344544032,1733539844295,-500.0,0.00010952,2]
[344544033,1733539844305,-500.0,0.00010952,2]
[344544034,1733539844315,-500.0,0.00010952,2]
[344544035,1733539844324,-500.0,0.00010952,2]
[344544036,1733539844333,-500.0,0.00010952,2]
[344544037,1733539844343,-500.0,0.00010952,2]
[344544038,1733539844353,-338.34440514,0.00010952,2]
[344544046,1733539844735,-161.65559486,0.00010952,2]
[344544047,1733539844744,-406.88122264,0.00010952,2]
[344544048,1733539844820,-93.11877736,0.00010952,2]
[344544049,1733539844833,-500.0,0.00010952,2]
[344544050,1733539844842,-1054.4,0.00010952,2]
[344544051,1733539844852,-632.49,0.00010952,2]
[344544052,1733539844861,-291.98863036,0.00010952,2]
[344544053,1733539844870,-697.83,0.00010952,2]
[344544054,1733539844879,-566.38,0.00010952,2]
[344544055,1733539844888,-42.58375413,0.00010952,2]
[344544056,1733539844900,-464.99624587,0.00010952,2]
[344544057,1733539844910,-335.82375416,0.00010952,2]
[344544058,1733539845614,-390.42619766,0.00010677,2]
[344544059,1733539845624,-164.17624584,0.00010952,2]
[344544060,1733539845634,-307.71417683,0.00010952,2]
[344544061,1733539845643,-500.0,0.00010952,2]
[344544062,1733539845653,-790.74,0.00010952,2]
[344544063,1733539845662,-41.55337967,0.00010952,2]
[344544064,1733539845674,-458.44662033,0.00010952,2]
[344544065,1733539845685,-500.0,0.00010952,2]
[344544066,1733539845694,-500.0,0.00010952,2]
[344544067,1733539845708,-27.85504967,0.00010952,2]
[344544068,1733539845734,-472.14495033,0.00010952,2]
[344544069,1733539845744,-500.0,0.00010952,2]
[344544070,1733539845753,-634.88,0.00010952,2]
[344544071,1733539845763,-500.0,0.00010952,2]
[344544072,1733539845774,-500.0,0.00010952,2]
[344544073,1733539845784,-618.27190395,0.00010952,2]
[344544074,1733539845793,-500.0,0.00010952,2]
[344544075,1733539845803,-500.0,0.00010952,2]
[344544076,1733539845813,-500.0,0.00010952,2]
[344544077,1733539845822,-500.0,0.00010952,2]
[344544078,1733539845832,-500.0,0.00010952,2]
[344544079,1733539845842,-218.02054139,0.00010952,2]
[344544080,1733539845854,-281.97945861,0.00010952,2]
[344544081,1733539845864,-241.39786684,0.00010952,2]
[344544082,1733539845876,-258.60213316,0.00010952,2]
[344544083,1733539845885,-60.68586684,0.00010952,2]
[344544085,1733539928730,6722.99858871,7.679e-05,2]
[344544086,1733539929049,6722.99858871,7.684e-05,2]
[344544087,1733539929359,6722.99858871,7.692e-05,2]
[344544088,1733539929646,6722.99858871,7.681e-05,2]
[344544089,1733539929902,6722.99858871,7.685e-05,2]
[344544090,1733539930266,6722.99858871,7.696e-05,2]
[344544091,1733539936369,547.81441071,7.691e-05,2]
[344544092,1733539936919,547.81441071,7.684e-05,2]
[344544093,1733539937032,547.81441071,7.688e-05,2]
[344544094,1733539937211,547.81441071,7.682e-05,2]
[344544095,1733539937527,547.81441071,7.693e-05,2]
[344544096,1733539937800,547.81441071,7.689e-05,2]
[344544097,1733539945124,200.0,7.691e-05,2]
[344544098,1733539945388,200.0,7.699e-05,2]
[344544099,1733539945645,200.0,7.684e-05,2]
[344544100,1733539945980,200.0,7.683e-05,2]
[344544101,1733539946211,200.0,7.679e-05,2]
[344544102,1733539946479,200.0,7.683e-05,2]
[344544103,1733539953038,213.50892557,7.683e-05,2]
[344544104,1733539953410,213.50892557,7.679e-05,2]
[344544105,1733539953712,213.50892557,7.695e-05,2]
[344544106,1733539953977,213.50892557,7.694e-05,2]
[344544107,1733539954262,213.50892557,7.691e-05,2]
[344544108,1733539954526,213.50892557,7.699e-05,2]
[344544109,1733539964200,200.0,7.685e-05,2]
[344544110,1733539964485,200.0,7.699e-05,2]
[344544111,1733539964762,200.0,7.688e-05,2]
[344544112,1733539965024,200.0,7.697e-05,2]
[344544113,1733539965374,200.0,7.696e-05,2]
[344544114,1733539965644,200.0,7.68e-05,2]
[344544115,1733539984292,12809.02379817,7.687e-05,2]
[344544116,1733539984575,12809.02379817,7.682e-05,2]
[344544117,1733539984843,12809.02379817,7.699e-05,2]
[344544118,1733539985125,12809.02379817,7.691e-05,2]
[344544119,1733539985597,12809.02379817,7.685e-05,2]
[344544120,1733539985872,12809.02379817,7.696e-05,2]
[344544121,1733539991974,734.83165252,7.682e-05,2]
[344544122,1733539992268,734.83165252,7.693e-05,2]
[344544123,1733539992557,734.83165252,7.695e-05,2]
[344544124,1733539992899,734.83165252,7.678e-05,2]
[344544125,1733539993199,734.83165252,7.679e-05,2]
[344544126,1733539993484,734.83165252,7.686e-05,2]
[344544127,1733540000615,200.0,7.687e-05,2]
[344544128,1733540000690,200.0,7.679e-05,2]
[344544129,1733540000907,200.0,7.685e-05,2]
[344544130,1733540001186,200.0,7.69e-05,2]
[344544131,1733540001497,200.0,7.694e-05,2]
[344544132,1733540001801,200.0,7.683e-05,2]
[344544133,1733540008584,222.16125311,7.678e-05,2]
[344544134,1733540008810,222.16125311,7.697e-05,2]
[344544135,1733540009097,222.16125311,7.688e-05,2]
[344544136,1733540009382,222.16125311,7.683e-05,2]
[344544137,1733540009652,222.16125311,7.679e-05,2]
[344544138,1733540009912,222.16125311,7.678e-05,2]
[344544140,1733540049463,9606.76784862,7.691e-05,2]
[344544141,1733540050030,9606.76784862,7.678e-05,2]
[344544142,1733540050183,9606.76784862,7.698e-05,2]
[344544143,1733540050397,9606.76784862,7.692e-05,2]
[344544144,1733540051020,9606.76784862,7.692e-05,2]
[344544145,1733540051126,9606.76784862,7.698e-05,2]
[344544146,1733540057099,551.12373939,7.678e-05,2]
[344544147,1733540057378,551.12373939,7.69e-05,2]
[344544148,1733540057653,551.12373939,7.696e-05,2]
[344544149,1733540057917,551.12373939,7.693e-05,2]
[344544150,1733540058209,551.12373939,7.7e-05,2]
[344544151,1733540058516,551.12373939,7.695e-05,2]
[344544152,1733540065791,200.0,7.689e-05,2]
[344544153,1733540066550,200.0,7.688e-05,2]
[344544154,1733540066806,200.0,7.689e-05,2]
[344544155,1733540067067,200.0,7.697e-05,2]
[344544156,1733540067335,200.0,7.682e-05,2]
[344544157,1733540067622,200.0,7.688e-05,2]
[344544158,1733540074121,200.0,7.686e-05,2]
[344544159,1733540074378,200.0,7.691e-05,2]
[344544160,1733540074682,200.0,7.688e-05,2]
[344544161,1733540074974,200.0,7.7e-05,2]
[344544162,1733540075279,200.0,7.697e-05,2]
[344544163,1733540075577,200.0,7.678e-05,2]
[344544164,1733540105622,13713.0,9.943e-05,2]
[344544165,1733540109459,7205.07588647,7.687e-05,2]
[344544166,1733540109744,7205.07588647,7.698e-05,2]
[344544167,1733540110029,7205.07588647,7.693e-05,2]
[344544168,1733540110309,7205.07588647,7.687e-05,2]
[344544169,1733540110597,7205.07588647,7.689e-05,2]
[344544170,1733540110916,7205.07588647,7.694e-05,2]
[344544171,1733540111951,1169.437,9.943e-05,2]
[344544172,1733540116493,1098.954,9.943e-05,2]
[344544173,1733540117109,413.34280454,7.696e-05,2]
[344544174,1733540117473,413.34280454,7.695e-05,2]
[344544175,1733540118418,413.34280454,7.69e-05,2]
[344544176,1733540118485,413.34280454,7.693e-05,2]
[344544177,1733540118573,413.34280454,7.68e-05,2]
[344544178,1733540118713,413.34280454,7.69e-05,2]
[344544179,1733540128810,200.0,7.683e-05,2]
[344544180,1733540129114,200.0,7.683e-05,2]
[344544181,1733540129409,200.0,7.699e-05,2]
[344544182,1733540129669,200.0,7.693e-05,2]
[344544183,1733540129956,200.0,7.698e-05,2]
[344544184,1733540130235,200.0,7.686e-05,2]
[344544185,1733540163885,5403.80691485,7.681e-05,2]
[344544186,1733540164170,5403.80691485,7.698e-05,2]
[344544187,1733540164431,5403.80691485,7.678e-05,2]
[344544188,1733540164747,5403.80691485,7.691e-05,2]
[344544189,1733540165030,5403.80691485,7.679e-05,2]
[344544190,1733540165588,5403.80691485,7.685e-05,2]
[344544191,1733540171534,310.0071034,7.685e-05,2]
[344544192,1733540171898,310.0071034,7.68e-05,2]
[344544193,1733540172212,310.0071034,7.677e-05,2]
[344544194,1733540172523,310.0071034,7.698e-05,2]
[344544195,1733540172880,310.0071034,7.7e-05,2]
[344544196,1733540173181,310.0071034,7.69e-05,2]
[344544197,1733540183191,200.0,7.683e-05,2]
[344544198,1733540183497,200.0,7.686e-05,2]
[344544199,1733540183944,200.0,7.697e-05,2]
[344544200,1733540184035,200.0,7.695e-05,2]
[344544201,1733540184314,200.0,7.694e-05,2]
[344544202,1733540184586,200.0,7.699e-05,2]
[344544203,1733540205273,3234.96,8.219e-05,2]
[344544204,1733540228529,4052.85518614,7.683e-05,2]
[344544205,1733540228786,4052.85518614,7.695e-05,2]
[344544206,1733540229094,4052.85518614,7.697e-05,2]
[344544207,1733540229373,4052.85518614,7.683e-05,2]
[344544208,1733540229663,4052.85518614,7.683e-05,2]
[344544209,1733540230282,4052.85518614,7.678e-05,2]
[344544210,1733540236095,232.50532755,7.699e-05,2]
[344544211,1733540236383,232.50532755,7.694e-05,2]
[344544212,1733540236655,232.50532755,7.686e-05,2]
[344544213,1733540241398,232.50532755,7.686e-05,2]
[344544214,1733540241719,232.50532755,7.69e-05,2]
[344544215,1733540241998,232.50532755,7.694e-05,2]
[344544216,1733540263490,226.56,7.992e-05,2]
[344544217,1733540267278,250.0,9.99e-05,2]
[344544218,1733540290043,3039.6413896,7.678e-05,2]
[344544219,1733540290314,3039.6413896,7.688e-05,2]
[344544220,1733540290568,3039.6413896,7.688e-05,2]
[344544221,1733540290844,3039.6413896,7.697e-05,2]
[344544222,1733540291131,3039.6413896,7.691e-05,2]
[344544223,1733540291491,3039.6413896,7.698e-05,2]
[344544224,1733540297586,200.0,7.695e-05,2]
[344544225,1733540297855,200.0,7.688e-05,2]
[344544226,1733540298145,200.0,7.698e-05,2]
[344544227,1733540298407,200.0,7.686e-05,2]
[344544228,1733540298690,200.0,7.678e-05,2]
[344544229,1733540298974,200.0,7.68e-05,2]
[344544230,1733540324357,250.0,9.99e-05,2]
[344544231,1733540344741,2279.7310422,7.677e-05,2]
[344544232,1733540345277,2279.7310422,7.68e-05,2]
[344544233,1733540345750,2279.7310422,7.699e-05,2]
[344544234,1733540345876,2279.7310422,7.684e-05,2]
[344544235,1733540346123,2279.7310422,7.694e-05,2]
[344544236,1733540346449,2279.7310422,7.692e-05,2]
[344544237,1733540352546,200.0,7.68e-05,2]
[344544238,1733540352886,200.0,7.686e-05,2]
[344544239,1733540353170,200.0,7.687e-05,2]
[344544240,1733540353443,200.0,7.683e-05,2]
[344544241,1733540353730,200.0,7.692e-05,2]
[344544242,1733540353994,200.0,7.694e-05,2]
[344544243,1733540394930,300.0,7e-05,2]
[344544244,1733540405593,1263.759,9.943e-05,2]
[344544245,1733540405686,568.311,9.943e-05,2]
[344544246,1733540409037,200.0,9.99e-05,2]
[344544247,1733540413359,1419.96797291,9.943e-05,2]
[344544263,1733541036476,-200.0,7.678e-05,2]
[344544266,1733541036487,-200.0,7.678e-05,2]
[344544268,1733541036497,-189.65599356,7.678e-05,2]
[344544270,1733541036512,-500.0,7.678e-05,2]
[344544272,1733541036525,-1020.14228809,7.678e-05,2]
[344544274,1733541036535,-200.0,7.678e-05,2]
[344544277,1733541036545,-200.0,7.678e-05,2]
[344544310,1733541037028,-540.99086256,7.678e-05,2]
[344544311,1733541037055,-228.23052014,7.678e-05,2]
[344544312,1733541037073,-200.0,7.679e-05,2]
[344544313,1733541037083,-721.32115007,7.679e-05,2]
[344544314,1733541037092,-405.74314692,7.679e-05,2]
[344544315,1733541037102,-200.0,7.679e-05,2]
[344544316,1733541037111,-228.23052014,7.679e-05,2]
[344544317,1733541037121,-200.0,7.679e-05,2]
[344544318,1733541037130,-200.0,7.68e-05,2]
[344544319,1733541037139,-228.23052014,7.681e-05,2]
[344544320,1733541037148,-1282.34871124,7.681e-05,2]
[344544321,1733541037157,-1709.79828165,7.681e-05,2]
[344544322,1733541037166,-200.0,7.681e-05,2]
[344544323,1733541037175,-200.0,7.682e-05,2]
[344544324,1733541037184,-1709.79828165,7.683e-05,2]
[344544325,1733541037194,-200.0,7.683e-05,2]
[344544326,1733541037203,-613.593393,7.684e-05,2]
[344544342,1733541038820,-348.16814043,7.684e-05,2]
[344544343,1733541038838,-228.23052014,7.684e-05,2]
[344544344,1733541038860,-228.23052014,7.684e-05,2]
[344544345,1733541038884,-200.0,7.684e-05,2]
[344544346,1733541038909,-721.32115007,7.684e-05,2]
[344544347,1733541038937,-200.0,7.685e-05,2]
[344544348,1733541038964,-540.99086256,7.686e-05,2]
[344544349,1733541038989,-961.76153343,7.686e-05,2]
[344544350,1733541039013,-200.0,7.686e-05,2]
[344544351,1733541039023,-405.74314692,7.687e-05,2]
[344544352,1733541039032,-304.30736019,7.687e-05,2]
[344544353,1733541039041,-200.0,7.687e-05,2]
[344544354,1733541039051,-721.32115007,7.687e-05,2]
[344544355,1733541039061,-200.0,7.688e-05,2]
[344544356,1733541039070,-405.74314692,7.688e-05,2]
[344544357,1733541039080,-1709.79828165,7.689e-05,2]
[344544358,1733541039089,-540.99086256,7.689e-05,2]
[344544359,1733541039098,-1282.34871124,7.689e-05,2]
[344544360,1733541039107,-228.23052014,7.69e-05,2]
[344544361,1733541039117,-200.0,7.69e-05,2]
[344544362,1733541039127,-304.30736019,7.69e-05,2]
[344544364,1733541039136,-304.30736019,7.691e-05,2]
[344544366,1733541039146,-200.0,7.691e-05,2]
[344544368,1733541039155,-721.32115007,7.692e-05,2]
[344544370,1733541039164,-200.0,7.692e-05,2]
[344544372,1733541039174,-405.74314692,7.692e-05,2]
[344544374,1733541039183,-405.74314692,7.692e-05,2]
[344544376,1733541039192,-237.39052925,7.693e-05,2]
[344544378,1733541039204,-168.35261767,7.693e-05,2]
[344544380,1733541039213,-200.0,7.693e-05,2]
[344544382,1733541039223,-200.0,7.694e-05,2]
[344544384,1733541039232,-200.0,7.694e-05,2]
[344544385,1733541039242,-961.76153343,7.694e-05,2]
[344544386,1733541039251,-304.30736019,7.694e-05,2]
[344544387,1733541039261,-540.99086256,7.694e-05,2]
[344544388,1733541039274,-1282.34871124,7.694e-05,2]
[344544389,1733541039284,-540.99086256,7.695e-05,2]
[344544390,1733541039295,-540.99086256,7.695e-05,2]
[344544391,1733541039305,-1282.34871124,7.695e-05,2]
[344544392,1733541039315,-1282.34871124,7.695e-05,2]
[344544393,1733541039324,-721.32115007,7.695e-05,2]
[344544394,1733541039333,-721.32115007,7.696e-05,2]
[344544395,1733541039343,-200.0,7.696e-05,2]
[344544396,1733541039353,-1709.79828165,7.696e-05,2]
[344544397,1733541039361,-304.30736019,7.697e-05,2]
[344544399,1733541039371,-961.76153343,7.697e-05,2]
[344544401,1733541039380,-961.76153343,7.697e-05,2]
[344544403,1733541039390,-1282.34871124,7.697e-05,2]
[344544405,1733541039399,-304.30736019,7.699e-05,2]
[344544407,1733541039410,-200.0,7.699e-05,2]
[344544409,1733541039419,-1709.79828165,7.699e-05,2]
[344544411,1733541039428,-961.76153343,7.7e-05,2]
[344544413,1733541039438,-3073.21,8.219e-05,2]
[344544415,1733541039447,-250.0,9.279e-05,2]
[344544417,1733541039457,-869.18,9.403e-05,2]
[344544419,1733541039467,-300.0,9.416e-05,2]
[344544421,1733541039480,-6614.3232298,9.417e-05,2]
[344544424,1733541039492,-7746.36312,9.417e-05,2]
[344544425,1733541039503,-3762.0,9.417e-05,2]
[344544426,1733541039517,-5777.3136502,9.417e-05,2]
[344544427,1733541039526,-250.0,9.481e-05,2]
[344544428,1733541039535,-1000.0,9.495e-05,2]
[344544429,1733541039545,-150.0,9.527e-05,2]
[344544430,1733541039554,-2535.09,9.622e-05,2]
[344544431,1733541039564,-200.0,9.627e-05,2]
[344544432,1733541039575,-2974.09,9.645e-05,2]
[344544433,1733541039587,-200.35,9.659e-05,2]
[344544434,1733541039596,-409.78,9.676e-05,2]
[344544435,1733541039606,-500.0,9.727e-05,2]
[344544436,1733541039617,-245.9,9.756e-05,2]
[344544437,1733541039627,-200.0,9.791e-05,2]
[344544438,1733541039636,-150.0,9.936e-05,2]
[344544439,1733541039646,-1893.0,9.983e-05,2]
[344544440,1733541039655,-563.0,9.983e-05,2]
[344544441,1733541039665,-817.0,9.983e-05,2]
[344544442,1733541039675,-3767.195,9.983e-05,2]
[344544443,1733541039684,-1255.187,9.983e-05,2]
[344544444,1733541039694,-3535.667,9.983e-05,2]
[344544445,1733541039704,-977.219,9.983e-05,2]
[344544446,1733541039713,-535.789,9.983e-05,2]
[344544447,1733541039723,-151.357,9.983e-05,2]
[344544448,1733541039732,-4635.632,9.983e-05,2]
[344544449,1733541039741,-200.0,9.99e-05,2]
[344544450,1733541039751,-776.68,0.00010031,2]
[344544451,1733541039760,-200.0,0.0001009,2]
[344544452,1733541039772,-200.0,0.0001009,2]
[344544453,1733541039781,-200.0,0.00010191,2]
[344544454,1733541039791,-200.0,0.00010191,2]
[344544455,1733541039801,-200.0,0.00010293,2]
[344544456,1733541039811,-200.0,0.00010293,2]
[344544457,1733541039821,-420.0,0.00010358,2]
[344544458,1733541039830,-189.55,0.00010377,2]
[344544459,1733541039840,-3073.21,0.00010449,2]
[344544460,1733541039850,-500.0,0.00010577,2]
[344544461,1733541039859,-1423.26430635,0.00010577,2]
[344544462,1733541040246,-8576.73569365,0.00010577,2]
[344544463,1733541040256,-164.96,0.0001059,2]
[344544464,1733541040266,-500.0,0.00010676,2]
[344544465,1733541040276,-500.0,0.00010676,2]
[344544466,1733541040285,-513.08,0.00010676,2]
[344544467,1733541040295,-500.0,0.00010676,2]
[344544468,1733541040304,-500.0,0.00010676,2]
[344544469,1733541040314,-500.0,0.00010676,2]
[344544470,1733541040323,-500.0,0.00010676,2]
[344544471,1733541040333,-500.0,0.00010676,2]
[344544472,1733541040342,-500.0,0.00010676,2]
[344544473,1733541040351,-500.0,0.00010676,2]
[344544474,1733541040361,-500.0,0.00010676,2]
[344544475,1733541040371,-500.0,0.00010676,2]
[344544476,1733541040380,-500.0,0.00010676,2]
[344544477,1733541040389,-500.0,0.00010676,2]
[344544478,1733541040399,-500.0,0.00010676,2]
[344544479,1733541040409,-500.0,0.00010676,2]
[344544480,1733541040418,-500.0,0.00010676,2]
[344544481,1733541040428,-500.0,0.00010676,2]
[344544482,1733541040438,-500.0,0.00010676,2]
[344544483,1733541040447,-500.0,0.00010676,2]
[344544484,1733541040458,-500.0,0.00010676,2]
[344544485,1733541040468,-500.0,0.00010676,2]
[344544486,1733541040478,-500.0,0.00010676,2]
[344544487,1733541040488,-500.0,0.00010676,2]
[344544488,1733541040497,-500.0,0.00010676,2]
[344544489,1733541040506,-500.0,0.00010676,2]
[344544490,1733541040518,-500.0,0.00010676,2]
[344544491,1733541040527,-500.0,0.00010676,2]
[344544492,1733541040537,-500.0,0.00010676,2]
[344544493,1733541040547,-500.0,0.00010676,2]
[344544494,1733541040557,-500.0,0.00010676,2]
[344544495,1733541040567,-500.0,0.00010676,2]
[344544496,1733541040580,-500.0,0.00010676,2]
[344544497,1733541040589,-500.0,0.00010676,2]
[344544498,1733541040599,-500.0,0.00010676,2]
[344544499,1733541040608,-617.52967731,0.00010676,2]
[344544500,1733541040619,-394.40435217,0.00010676,2]
[344544501,1733541040628,-500.0,0.00010676,2]
[344544502,1733541040638,-500.0,0.00010676,2]
[344544503,1733541040647,-500.0,0.00010676,2]
[344544504,1733541040658,-500.0,0.00010676,2]
[344544506,1733541040668,-500.0,0.00010676,2]
[344544507,1733541040678,-500.0,0.00010676,2]
[344544509,1733541040687,-500.0,0.00010676,2]
[344544510,1733541040697,-500.0,0.00010676,2]
[344544511,1733541040706,-500.0,0.00010676,2]
[344544512,1733541040715,-2668.21,0.00010676,2]
[344544513,1733541040725,-500.0,0.00010676,2]
[344544514,1733541040735,-500.0,0.00010676,2]
[344544515,1733541040744,-500.0,0.00010676,2]
[344544516,1733541040754,-500.0,0.00010676,2]
[344544517,1733541040763,-500.0,0.00010676,2]
[344544518,1733541040774,-500.0,0.00010676,2]
[344544519,1733541040784,-500.0,0.00010677,2]
[344544520,1733541040794,-421.39161258,0.00010677,2]
[344544521,1733541040803,-427.81473339,0.00010677,2]
[344544522,1733541040813,-500.0,0.00010677,2]
[344544523,1733541040823,-500.0,0.00010677,2]
[344544524,1733541040832,-500.0,0.00010677,2]
[344544525,1733541040841,-500.0,0.00010677,2]
[344544526,1733541040851,-500.0,0.00010677,2]
[344544527,1733541040861,-500.0,0.00010677,2]
[344544528,1733541040871,-500.0,0.00010677,2]
[344544529,1733541040882,-500.0,0.00010677,2]
[344544530,1733541040892,-500.0,0.00010677,2]
[344544531,1733541040902,-627.31,0.00010677,2]
[344544532,1733541040912,-500.0,0.00010677,2]
[344544533,1733541040922,-500.0,0.00010677,2]
[344544534,1733541040932,-500.0,0.00010677,2]
[344544535,1733541040941,-500.0,0.00010677,2]
[344544536,1733541040951,-500.0,0.00010677,2]
[344544537,1733541040962,-500.0,0.00010677,2]
[344544538,1733541040971,-500.0,0.00010677,2]
[344544539,1733541040981,-500.0,0.00010677,2]
[344544540,1733541040991,-500.0,0.00010677,2]
[344544541,1733541041000,-500.0,0.00010677,2]
[344544542,1733541041010,-535.0391403,0.00010677,2]
[344544543,1733541041022,-500.0,0.00010677,2]
[344544544,1733541041032,-533.44,0.00010677,2]
[344544545,1733541041042,-500.0,0.00010677,2]
[344544546,1733541041053,-500.0,0.00010677,2]
[344544547,1733541041063,-500.0,0.00010677,2]
[344544548,1733541041074,-500.0,0.00010677,2]
[344544549,1733541041084,-500.0,0.00010677,2]
[344544550,1733541041094,-546.95,0.00010677,2]
[344544551,1733541041104,-500.0,0.00010677,2]
[344544552,1733541041114,-500.0,0.00010677,2]
[344544553,1733541041124,-500.0,0.00010677,2]
[344544554,1733541041135,-500.0,0.00010677,2]
[344544555,1733541041145,-500.0,0.00010677,2]
[344544556,1733541041155,-500.0,0.00010677,2]
[344544557,1733541041165,-500.0,0.00010677,2]
[344544558,1733541041174,-500.0,0.00010677,2]
[344544559,1733541041184,-500.0,0.00010677,2]
[344544560,1733541041194,-500.0,0.00010677,2]
[344544561,1733541041203,-500.0,0.00010677,2]
[344544562,1733541041213,-500.0,0.00010677,2]
[344544563,1733541041223,-500.0,0.00010677,2]
[344544564,1733541041233,-500.0,0.00010677,2]
[344544565,1733541041487,-500.0,0.00010677,2]
[344544566,1733541041501,-500.0,0.00010677,2]
[344544567,1733541041512,-500.0,0.00010677,2]
[344544568,1733541041524,-500.0,0.00010677,2]
[344544569,1733541041533,-500.0,0.00010677,2]
[344544570,1733541041543,-1000.0,0.00010682,2]
[344544571,1733541041553,-2500.0,0.00010849,2]
[344544572,1733541041564,-2500.0,0.00010851,2]
[344544573,1733541041575,-500.0,0.00010949,2]